[Event "GMT Biel Chess Festival classic"]
[Site "Biel/Bienne, Switzerland"]
[Date "????.??.??"]
[Round "6.2"]
[White "Naiditsch, Arkadij"]
[Black "Anton Guijarro, David"]
[Result "1-0"]
[TimeControl "90 minutes for the first 40 moves + 30 minutes for the rest of the game with an addition of 30 seconds per move starting from move one"]
[WhiteTitle "GM"]
[BlackTitle "GM"]
[WhiteFideId "4650891"]
[BlackFideId "2285525"]
[WhiteElo "2626"]
[BlackElo "2703"]

1. e4 {[%clk 01:30:56]} {[%emt 00:00:02]} c5 {[%clk 01:30:48]} {[%emt
00:00:13]} 2. Nf3 {[%clk 01:31:18]} {[%emt 00:00:08]} Nc6 {[%clk 01:31:09]}
{[%emt 00:00:08]} 3. Bb5 {[%clk 01:31:37]} {[%emt 00:00:11]} e6 {[%clk
01:31:19]} {[%emt 00:00:21]} 4. O-O {[%clk 01:31:41]} {[%emt 00:00:26]} Nge7
{[%clk 01:31:25]} {[%emt 00:00:25]} 5. Re1 {[%clk 01:31:53]} {[%emt 00:00:18]}
a6 {[%clk 01:31:31]} {[%emt 00:00:24]} 6. Bf1 {[%clk 01:32:01]} {[%emt
00:00:21]} b6 {[%clk 01:31:39]} {[%emt 00:00:23]} 7. d4 {[%clk 01:25:33]}
{[%emt 00:06:57]} cxd4 {[%clk 01:31:38]} {[%emt 00:00:31]} 8. Nxd4 {[%clk
01:25:52]} {[%emt 00:00:12]} Nxd4 {[%clk 01:31:09]} {[%emt 00:00:59]} 9. Qxd4
{[%clk 01:26:15]} {[%emt 00:00:07]} Nc6 {[%clk 01:30:58]} {[%emt 00:00:41]} 10.
Qd2 {[%clk 01:25:31]} {[%emt 00:01:15]} Qc7 {[%clk 01:14:40]} {[%emt 00:16:47]}
11. c4 {[%clk 01:21:58]} {[%emt 00:04:03]} Bd6 {[%clk 01:12:14]} {[%emt
00:02:57]} 12. h3 {[%clk 01:18:08]} {[%emt 00:04:19]} Bb7 {[%clk 00:53:20]}
{[%emt 00:19:24]} 13. Nc3 {[%clk 01:18:26]} {[%emt 00:00:12]} Rd8 {[%clk
00:46:54]} {[%emt 00:06:55]} 14. Qd1 {[%clk 01:16:41]} {[%emt 00:02:14]} O-O
{[%clk 00:45:40]} {[%emt 00:01:44]} 15. Be3 {[%clk 01:14:15]} {[%emt 00:02:56]}
Bc5 {[%clk 00:42:14]} {[%emt 00:03:57]} 16. Rc1 {[%clk 01:04:26]} {[%emt
00:10:19]} Ne5 {[%clk 00:39:50]} {[%emt 00:02:54]} 17. Na4 {[%clk 00:37:52]}
{[%emt 00:27:04]} Bxe3 {[%clk 00:34:48]} {[%emt 00:05:32]} 18. Rxe3 {[%clk
00:37:07]} {[%emt 00:01:15]} f5 {[%clk 00:31:12]} {[%emt 00:04:06]} 19. Qd4
{[%clk 00:28:41]} {[%emt 00:08:56]} fxe4 {[%clk 00:24:31]} {[%emt 00:07:11]} 20.
Qxb6 {[%clk 00:28:48]} {[%emt 00:00:24]} Qxb6 {[%clk 00:22:43]} {[%emt
00:02:18]} 21. Nxb6 {[%clk 00:29:15]} {[%emt 00:00:02]} d5 {[%clk 00:21:41]}
{[%emt 00:01:32]} 22. cxd5 {[%clk 00:26:16]} {[%emt 00:03:29]} exd5 {[%clk
00:22:06]} {[%emt 00:00:05]} 23. Rb3 {[%clk 00:26:40]} {[%emt 00:00:06]} Rf7
{[%clk 00:20:19]} {[%emt 00:02:17]} 24. Rc5 {[%clk 00:26:40]} {[%emt 00:00:30]}
Re7 {[%clk 00:18:44]} {[%emt 00:02:05]} 25. Rb4 {[%clk 00:17:23]} {[%emt
00:09:48]} d4 {[%clk 00:15:23]} {[%emt 00:03:51]} 26. Nc4 {[%clk 00:17:05]}
{[%emt 00:00:48]} Nxc4 {[%clk 00:12:03]} {[%emt 00:03:51]} 27. Bxc4+ {[%clk
00:17:15]} {[%emt 00:00:19]} Kf8 {[%clk 00:07:33]} {[%emt 00:05:00]} 28. Rf5+
{[%clk 00:15:24]} {[%emt 00:02:21]} Ke8 {[%clk 00:07:58]} {[%emt 00:00:06]} 29.
Bb3 {[%clk 00:15:37]} {[%emt 00:00:16]} Bc6 {[%clk 00:05:51]} {[%emt 00:02:37]}
30. Rb6 {[%clk 00:14:58]} {[%emt 00:01:09]} Bd7 {[%clk 00:04:19]} {[%emt
00:02:01]} 31. Rd5 {[%clk 00:12:30]} {[%emt 00:02:57]} e3 {[%clk 00:04:06]}
{[%emt 00:00:44]} 32. fxe3 {[%clk 00:12:53]} {[%emt 00:00:07]} dxe3 {[%clk
00:04:31]} {[%emt 00:00:05]} 33. Rd1 {[%clk 00:11:28]} {[%emt 00:01:55]} a5
{[%clk 00:03:07]} {[%emt 00:01:55]} 34. Bc4 {[%clk 00:08:43]} {[%emt 00:03:15]}
Re5 {[%clk 00:02:16]} {[%emt 00:01:21]} 35. Rb7 {[%clk 00:04:48]} {[%emt
00:04:25]} Rc8 {[%clk 00:01:24]} {[%emt 00:01:22]} 36. Rdxd7 {[%clk 00:01:18]}
{[%emt 00:03:59]} Rxc4 {[%clk 00:01:48]} {[%emt 00:00:06]} 37. Rxg7 {[%clk
00:01:38]} {[%emt 00:00:10]} Rc1+ {[%clk 00:01:01]} {[%emt 00:01:18]} 38. Kh2
{[%clk 00:02:06]} {[%emt 00:00:02]} Kf8 {[%clk 00:00:41]} {[%emt 00:00:51]} 39.
Rxh7 {[%clk 00:02:25]} {[%emt 00:00:11]} Kg8 {[%clk 00:00:42]} {[%emt
00:00:29]} 40. Rbg7+ {[%clk 00:02:32]} {[%emt 00:00:22]} Kf8 {[%clk 00:01:07]}
{[%emt 00:00:06]} 41. Rb7 {[%clk 00:02:34]} {[%emt 00:00:26]} Kg8 {[%clk
00:01:14]} {[%emt 00:00:24]} 42. Rhe7 {[%clk 00:00:42]} {[%emt 00:02:22]} 1-0

[Event "GMT Biel Chess Festival classic"]
[Site "Biel/Bienne, Switzerland"]
[Date "????.??.??"]
[Round "6.3"]
[White "Harikrishna, Pentala"]
[Black "Ã‰douard, Romain"]
[Result "1-0"]
[TimeControl "90 minutes for the first 40 moves + 30 minutes for the rest of the game with an addition of 30 seconds per move starting from move one"]
[WhiteTitle "GM"]
[BlackTitle "GM"]
[WhiteFideId "5007003"]
[BlackFideId "633429"]
[WhiteElo "2719"]
[BlackElo "2649"]

1. e4 {[%clk 01:30:57]} {[%emt 00:00:02]} c5 {[%clk 01:30:57]} {[%emt
00:00:03]} 2. Nf3 {[%clk 01:31:20]} {[%emt 00:00:07]} d6 {[%clk 01:31:25]}
{[%emt 00:00:03]} 3. d4 {[%clk 01:31:39]} {[%emt 00:00:11]} cxd4 {[%clk
01:31:50]} {[%emt 00:00:05]} 4. Qxd4 {[%clk 01:32:02]} {[%emt 00:00:07]} a6
{[%clk 01:29:21]} {[%emt 00:02:59]} 5. Be2 {[%clk 01:31:51]} {[%emt 00:00:41]}
Nc6 {[%clk 01:29:45]} {[%emt 00:00:06]} 6. Qe3 {[%clk 01:32:15]} {[%emt
00:00:06]} Nf6 {[%clk 01:28:57]} {[%emt 00:01:18]} 7. O-O {[%clk 01:32:21]}
{[%emt 00:00:24]} g6 {[%clk 01:29:00]} {[%emt 00:00:28]} 8. h3 {[%clk
01:31:26]} {[%emt 00:01:24]} Bg7 {[%clk 01:29:26]} {[%emt 00:00:04]} 9. c4
{[%clk 01:31:17]} {[%emt 00:00:39]} O-O {[%clk 01:29:51]} {[%emt 00:00:05]} 10.
Nc3 {[%clk 01:31:35]} {[%emt 00:00:11]} Rb8 {[%clk 01:28:38]} {[%emt 00:01:43]}
11. Rd1 {[%clk 01:28:21]} {[%emt 00:03:43]} Nd7 {[%clk 01:28:03]} {[%emt
00:01:06]} 12. Rb1 {[%clk 01:28:16]} {[%emt 00:00:35]} b6 {[%clk 01:24:28]}
{[%emt 00:04:06]} 13. b3 {[%clk 01:26:19]} {[%emt 00:02:26]} Bb7 {[%clk
01:24:54]} {[%emt 00:00:04]} 14. Bb2 {[%clk 01:26:28]} {[%emt 00:00:21]} Ba8
{[%clk 01:23:22]} {[%emt 00:02:02]} 15. Nd5 {[%clk 01:21:09]} {[%emt 00:05:48]}
b5 {[%clk 01:22:59]} {[%emt 00:00:53]} 16. Bxg7 {[%clk 01:12:32]} {[%emt
00:09:07]} Kxg7 {[%clk 01:23:20]} {[%emt 00:00:10]} 17. b4 {[%clk 01:12:10]}
{[%emt 00:00:51]} bxc4 {[%clk 01:16:23]} {[%emt 00:07:27]} 18. Bxc4 {[%clk
01:12:01]} {[%emt 00:00:38]} a5 {[%clk 01:16:51]} {[%emt 00:00:02]} 19. b5
{[%clk 01:04:09]} {[%emt 00:08:23]} Nce5 {[%clk 01:17:14]} {[%emt 00:00:07]} 20.
Nxe5 {[%clk 01:02:54]} {[%emt 00:01:45]} Nxe5 {[%clk 01:17:32]} {[%emt
00:00:12]} 21. Bf1 {[%clk 01:00:10]} {[%emt 00:03:14]} Nd7 {[%clk 01:16:59]}
{[%emt 00:01:03]} 22. Rbc1 {[%clk 00:58:32]} {[%emt 00:02:07]} Bxd5 {[%clk
01:17:01]} {[%emt 00:00:29]} 23. exd5 {[%clk 00:54:49]} {[%emt 00:04:13]} Nc5
{[%clk 01:17:07]} {[%emt 00:00:25]} 24. Rd4 {[%clk 00:54:30]} {[%emt 00:00:49]}
Kg8 {[%clk 01:13:06]} {[%emt 00:04:31]} 25. Rh4 {[%clk 00:46:52]} {[%emt
00:08:07]} f5 {[%clk 01:13:29]} {[%emt 00:00:07]} 26. Rd4 {[%clk 00:46:31]}
{[%emt 00:00:51]} a4 {[%clk 01:13:03]} {[%emt 00:00:57]} 27. h4 {[%clk
00:44:25]} {[%emt 00:02:35]} Qe8 {[%clk 01:13:18]} {[%emt 00:00:15]} 28. Rxc5
{[%clk 00:42:25]} {[%emt 00:02:30]} dxc5 {[%clk 01:13:33]} {[%emt 00:00:15]} 29.
Rxa4 {[%clk 00:42:51]} {[%emt 00:00:04]} Rxb5 {[%clk 01:11:07]} {[%emt
00:02:56]} 30. Ra7 {[%clk 00:32:36]} {[%emt 00:10:44]} Rf7 {[%clk 01:09:20]}
{[%emt 00:02:17]} 31. Bxb5 {[%clk 00:32:07]} {[%emt 00:01:00]} Qxb5 {[%clk
01:09:47]} {[%emt 00:00:03]} 32. Rxe7 {[%clk 00:24:56]} {[%emt 00:07:40]} Rxe7
{[%clk 01:07:48]} {[%emt 00:02:29]} 33. Qxe7 {[%clk 00:24:51]} {[%emt
00:00:35]} Qb1+ {[%clk 01:08:09]} {[%emt 00:00:09]} 34. Kh2 {[%clk 00:25:16]}
{[%emt 00:00:05]} Qxa2 {[%clk 01:08:28]} {[%emt 00:00:11]} 35. Qxc5 {[%clk
00:18:20]} {[%emt 00:07:26]} Qd2 {[%clk 01:07:27]} {[%emt 00:01:31]} 36. d6
{[%clk 00:17:50]} {[%emt 00:01:00]} Kf7 {[%clk 01:07:06]} {[%emt 00:00:51]} 37.
f3 {[%clk 00:07:34]} {[%emt 00:10:46]} Qe1 {[%clk 00:54:18]} {[%emt 00:13:17]}
38. Qd4 {[%clk 00:02:35]} {[%emt 00:05:29]} Qe8 {[%clk 00:51:20]} {[%emt
00:03:30]} 39. Qd5+ {[%clk 00:01:21]} {[%emt 00:01:44]} Qe6 {[%clk 00:51:41]}
{[%emt 00:00:08]} 40. Qxe6+ {[%clk 00:01:11]} {[%emt 00:00:41]} Kxe6 {[%clk
00:52:07]} {[%emt 00:00:04]} 41. Kg3 {[%clk 00:01:37]} {[%emt 00:00:04]} Kxd6
{[%clk 00:52:32]} {[%emt 00:00:05]} 42. Kf4 {[%clk 00:02:01]} {[%emt 00:00:06]}
Ke6 {[%clk 00:52:49]} {[%emt 00:00:14]} 43. Kg5 {[%clk 00:02:10]} {[%emt
00:00:20]} Kf7 {[%clk 00:53:17]} {[%emt 00:00:02]} 44. Kh6 {[%clk 00:02:24]}
{[%emt 00:00:16]} 1-0

[Event "GMT Biel Chess Festival classic"]
[Site "Biel/Bienne, Switzerland"]
[Date "????.??.??"]
[Round "6.4"]
[White "Keymer, Vincent"]
[Black "Wojtaszek, Radoslaw"]
[Result "1/2-1/2"]
[TimeControl "90 minutes for the first 40 moves + 30 minutes for the rest of the game with an addition of 30 seconds per move starting from move one"]
[WhiteTitle "GM"]
[BlackTitle "GM"]
[WhiteFideId "12940690"]
[BlackFideId "1118358"]
[WhiteElo "2487"]
[BlackElo "2719"]

1. Nf3 {[%clk 01:30:57]} {[%emt 00:00:02]} Nf6 {[%clk 01:30:26]} {[%emt
00:00:34]} 2. c4 {[%clk 01:31:17]} {[%emt 00:00:11]} e6 {[%clk 01:30:52]}
{[%emt 00:00:03]} 3. Nc3 {[%clk 01:31:34]} {[%emt 00:00:15]} d5 {[%clk
01:31:15]} {[%emt 00:00:06]} 4. e3 {[%clk 01:32:01]} {[%emt 00:00:03]} a6
{[%clk 01:31:38]} {[%emt 00:00:07]} 5. b3 {[%clk 01:30:26]} {[%emt 00:02:05]}
c5 {[%clk 01:31:59]} {[%emt 00:00:09]} 6. Bb2 {[%clk 01:30:41]} {[%emt
00:00:15]} Nc6 {[%clk 01:32:19]} {[%emt 00:00:09]} 7. cxd5 {[%clk 01:30:32]}
{[%emt 00:00:40]} exd5 {[%clk 01:32:42]} {[%emt 00:00:07]} 8. d4 {[%clk
01:30:10]} {[%emt 00:00:52]} Bg4 {[%clk 01:33:04]} {[%emt 00:00:07]} 9. Be2
{[%clk 01:26:52]} {[%emt 00:03:49]} Bxf3 {[%clk 01:33:25]} {[%emt 00:00:09]} 10.
Bxf3 {[%clk 01:27:16]} {[%emt 00:00:07]} cxd4 {[%clk 01:33:50]} {[%emt
00:00:04]} 11. exd4 {[%clk 01:27:40]} {[%emt 00:00:06]} Bb4 {[%clk 01:34:15]}
{[%emt 00:00:04]} 12. Qe2+ {[%clk 01:12:23]} {[%emt 00:15:47]} Qe7 {[%clk
01:32:03]} {[%emt 00:02:41]} 13. O-O {[%clk 01:09:03]} {[%emt 00:03:51]} Qxe2
{[%clk 01:18:13]} {[%emt 00:14:20]} 14. Nxe2 {[%clk 01:09:16]} {[%emt
00:00:18]} O-O-O {[%clk 01:18:35]} {[%emt 00:00:07]} 15. Nf4 {[%clk 01:04:02]}
{[%emt 00:05:44]} Rhe8 {[%clk 01:18:58]} {[%emt 00:00:06]} 16. Nd3 {[%clk
01:00:00]} {[%emt 00:04:32]} Bd6 {[%clk 01:19:21]} {[%emt 00:00:07]} 17. Rac1
{[%clk 00:46:48]} {[%emt 00:13:43]} Kb8 {[%clk 01:19:02]} {[%emt 00:00:48]} 18.
Rfd1 {[%clk 00:43:50]} {[%emt 00:03:29]} Ne4 {[%clk 01:16:47]} {[%emt
00:02:45]} 19. g3 {[%clk 00:41:15]} {[%emt 00:03:06]} Re7 {[%clk 01:11:20]}
{[%emt 00:05:56]} 20. h4 {[%clk 00:31:31]} {[%emt 00:10:14]} Nb4 {[%clk
01:07:27]} {[%emt 00:04:23]} 21. Nxb4 {[%clk 00:28:56]} {[%emt 00:03:06]} Bxb4
{[%clk 01:07:50]} {[%emt 00:00:07]} 22. Rc2 {[%clk 00:27:18]} {[%emt 00:02:08]}
Rc8 {[%clk 01:06:00]} {[%emt 00:02:19]} 23. Rxc8+ {[%clk 00:22:22]} {[%emt
00:05:26]} Kxc8 {[%clk 01:06:20]} {[%emt 00:00:10]} 24. Rc1+ {[%clk 00:22:33]}
{[%emt 00:00:19]} Rc7 {[%clk 01:04:56]} {[%emt 00:01:54]} 25. Rxc7+ {[%clk
00:21:55]} {[%emt 00:01:09]} Kxc7 {[%clk 01:05:21]} {[%emt 00:00:04]} 26. Kf1
{[%clk 00:21:40]} {[%emt 00:00:45]} Nd2+ {[%clk 01:03:38]} {[%emt 00:02:13]} 27.
Ke2 {[%clk 00:22:03]} {[%emt 00:00:07]} Nxf3 {[%clk 01:04:04]} {[%emt
00:00:03]} 28. Kxf3 {[%clk 00:22:29]} {[%emt 00:00:05]} Kd6 {[%clk 01:04:28]}
{[%emt 00:00:05]} 29. g4 {[%clk 00:21:24]} {[%emt 00:01:35]} Ke6 {[%clk
01:04:53]} {[%emt 00:00:05]} 30. h5 {[%clk 00:21:16]} {[%emt 00:00:39]} g6
{[%clk 01:05:11]} {[%emt 00:00:11]} 31. hxg6 {[%clk 00:20:34]} {[%emt
00:01:13]} fxg6 {[%clk 01:05:34]} {[%emt 00:00:06]} 32. Bc1 {[%clk 00:20:25]}
{[%emt 00:00:39]} Be7 {[%clk 01:05:06]} {[%emt 00:00:58]} 33. Be3 {[%clk
00:17:55]} {[%emt 00:03:00]} h5 {[%clk 01:03:57]} {[%emt 00:01:38]} 34. Kg3
{[%clk 00:17:55]} {[%emt 00:00:31]} Bd8 {[%clk 01:03:51]} {[%emt 00:00:36]} 35.
f3 {[%clk 00:17:54]} {[%emt 00:00:32]} Be7 {[%clk 01:04:04]} {[%emt 00:00:16]}
36. Kh3 {[%clk 00:17:50]} {[%emt 00:00:34]} Bd8 {[%clk 01:04:28]} {[%emt
00:00:06]} 37. Kg3 {[%clk 00:18:16]} {[%emt 00:00:04]} Be7 {[%clk 01:04:55]}
{[%emt 00:00:03]} 38. Kh3 {[%clk 00:18:42]} {[%emt 00:00:04]} Bd8 {[%clk
01:05:21]} {[%emt 00:00:03]} 39. Kg3 {[%clk 00:19:08]} {[%emt 00:00:05]} Be7
{[%clk 01:05:47]} {[%emt 00:00:03]} 40. Kh3 {[%clk 00:19:34]} {[%emt 00:00:05]}
Bd8 {[%clk 01:06:15]} {[%emt 00:00:02]} 1/2-1/2

[Event "GMT Biel Chess Festival classic"]
[Site "Biel/Bienne, Switzerland"]
[Date "????.??.??"]
[Round "7.2"]
[White "Ã‰douard, Romain"]
[Black "Keymer, Vincent"]
[Result "1-0"]
[TimeControl "90 minutes for the first 40 moves + 30 minutes for the rest of the game with an addition of 30 seconds per move starting from move one"]
[WhiteTitle "GM"]
[BlackTitle "GM"]
[WhiteFideId "633429"]
[BlackFideId "12940690"]
[WhiteElo "2649"]
[BlackElo "2487"]

1. e4 {[%clk 01:30:57]} {[%emt 00:00:02]} c5 {[%clk 01:30:32]} {[%emt
00:00:29]} 2. Nf3 {[%clk 01:31:21]} {[%emt 00:00:06]} d6 {[%clk 01:30:59]}
{[%emt 00:00:03]} 3. Bb5+ {[%clk 01:30:34]} {[%emt 00:01:16]} Nd7 {[%clk
01:31:24]} {[%emt 00:00:06]} 4. Ba4 {[%clk 01:30:50]} {[%emt 00:00:14]} Ngf6
{[%clk 01:27:15]} {[%emt 00:04:39]} 5. O-O {[%clk 01:31:03]} {[%emt 00:00:17]}
e6 {[%clk 01:26:24]} {[%emt 00:01:21]} 6. Re1 {[%clk 01:28:56]} {[%emt
00:02:36]} a6 {[%clk 01:19:04]} {[%emt 00:07:51]} 7. c4 {[%clk 01:29:08]}
{[%emt 00:00:18]} Be7 {[%clk 01:18:09]} {[%emt 00:01:26]} 8. d4 {[%clk
01:28:50]} {[%emt 00:00:47]} cxd4 {[%clk 01:18:24]} {[%emt 00:00:15]} 9. Nxd4
{[%clk 01:28:56]} {[%emt 00:00:24]} O-O {[%clk 01:17:09]} {[%emt 00:01:45]} 10.
Nc3 {[%clk 01:29:16]} {[%emt 00:00:09]} Qc7 {[%clk 01:14:39]} {[%emt 00:03:01]}
11. Qe2 {[%clk 01:29:28]} {[%emt 00:00:18]} Ne5 {[%clk 01:03:38]} {[%emt
00:11:32]} 12. Bb3 {[%clk 01:29:39]} {[%emt 00:00:19]} Bd7 {[%clk 01:03:30]}
{[%emt 00:00:38]} 13. f4 {[%clk 01:27:25]} {[%emt 00:02:43]} Ng6 {[%clk
00:51:33]} {[%emt 00:12:27]} 14. Kh1 {[%clk 01:25:57]} {[%emt 00:01:57]} e5
{[%clk 00:42:21]} {[%emt 00:09:42]} 15. Nf5 {[%clk 01:24:55]} {[%emt 00:01:31]}
Bd8 {[%clk 00:41:54]} {[%emt 00:00:58]} 16. fxe5 {[%clk 01:12:44]} {[%emt
00:12:42]} Nxe5 {[%clk 00:41:06]} {[%emt 00:01:18]} 17. Bf4 {[%clk 01:12:51]}
{[%emt 00:00:22]} Re8 {[%clk 00:33:29]} {[%emt 00:08:08]} 18. Rad1 {[%clk
01:11:10]} {[%emt 00:02:10]} Bxf5 {[%clk 00:27:06]} {[%emt 00:06:52]} 19. exf5
{[%clk 01:09:09]} {[%emt 00:02:31]} Qc8 {[%clk 00:22:50]} {[%emt 00:04:46]} 20.
Qc2 {[%clk 00:48:46]} {[%emt 00:20:53]} Ba5 {[%clk 00:19:56]} {[%emt 00:03:24]}
21. Ba4 {[%clk 00:38:48]} {[%emt 00:10:28]} Qxc4 {[%clk 00:17:40]} {[%emt
00:02:47]} 22. Bg5 {[%clk 00:39:11]} {[%emt 00:00:07]} Bxc3 {[%clk 00:15:56]}
{[%emt 00:02:14]} 23. bxc3 {[%clk 00:39:13]} {[%emt 00:00:28]} b5 {[%clk
00:16:11]} {[%emt 00:00:14]} 24. Bb3 {[%clk 00:39:30]} {[%emt 00:00:13]} Qg4
{[%clk 00:15:49]} {[%emt 00:00:52]} 25. Bxf6 {[%clk 00:39:29]} {[%emt
00:00:31]} gxf6 {[%clk 00:16:16]} {[%emt 00:00:03]} 26. Qf2 {[%clk 00:33:31]}
{[%emt 00:06:28]} Kh8 {[%clk 00:11:36]} {[%emt 00:05:10]} 27. Rxd6 {[%clk
00:32:36]} {[%emt 00:01:25]} Rad8 {[%clk 00:10:18]} {[%emt 00:01:48]} 28. Rxd8
{[%clk 00:28:56]} {[%emt 00:04:10]} Rxd8 {[%clk 00:10:43]} {[%emt 00:00:05]} 29.
Qb6 {[%clk 00:29:22]} {[%emt 00:00:04]} Re8 {[%clk 00:01:26]} {[%emt 00:09:47]}
30. Bxf7 {[%clk 00:27:43]} {[%emt 00:02:09]} Qh4 {[%clk 00:00:39]} {[%emt
00:01:18]} 31. g3 {[%clk 00:25:32]} {[%emt 00:02:40]} Qh6 {[%clk 00:00:59]}
{[%emt 00:00:10]} 32. Bxe8 {[%clk 00:25:51]} {[%emt 00:00:11]} Ng4 {[%clk
00:01:27]} {[%emt 00:00:03]} 33. Bh5 {[%clk 00:23:10]} {[%emt 00:03:10]} Qxh5
{[%clk 00:01:32]} {[%emt 00:00:26]} 34. Qb8+ {[%clk 00:22:58]} {[%emt
00:00:41]} Kg7 {[%clk 00:01:52]} {[%emt 00:00:10]} 35. Re7+ {[%clk 00:23:23]}
{[%emt 00:00:04]} Kh6 {[%clk 00:02:18]} {[%emt 00:00:05]} 36. Qf8+ {[%clk
00:23:12]} {[%emt 00:00:40]} Kg5 {[%clk 00:02:44]} {[%emt 00:00:05]} 37. Rg7+
{[%clk 00:23:29]} {[%emt 00:00:13]} Kxf5 {[%clk 00:03:04]} {[%emt 00:00:11]} 38.
Qc8+ {[%clk 00:23:52]} {[%emt 00:00:05]} 1-0

[Event "GMT Biel Chess Festival classic"]
[Site "Biel/Bienne, Switzerland"]
[Date "????.??.??"]
[Round "7.3"]
[White "Anton Guijarro, David"]
[Black "Harikrishna, Pentala"]
[Result "0-1"]
[TimeControl "90 minutes for the first 40 moves + 30 minutes for the rest of the game with an addition of 30 seconds per move starting from move one"]
[WhiteTitle "GM"]
[BlackTitle "GM"]
[WhiteFideId "2285525"]
[BlackFideId "5007003"]
[WhiteElo "2703"]
[BlackElo "2719"]

1. c4 {[%clk 01:30:55]} {[%emt 00:00:04]} c6 {[%clk 01:30:42]} {[%emt
00:00:19]} 2. Nf3 {[%clk 01:29:12]} {[%emt 00:02:12]} d5 {[%clk 01:30:45]}
{[%emt 00:00:27]} 3. e3 {[%clk 01:29:19]} {[%emt 00:00:24]} Nf6 {[%clk
01:31:05]} {[%emt 00:00:10]} 4. Nc3 {[%clk 01:29:41]} {[%emt 00:00:08]} e6
{[%clk 01:31:27]} {[%emt 00:00:08]} 5. d4 {[%clk 01:25:31]} {[%emt 00:04:40]}
Nbd7 {[%clk 01:31:47]} {[%emt 00:00:09]} 6. Qc2 {[%clk 01:25:48]} {[%emt
00:00:13]} Bd6 {[%clk 01:32:00]} {[%emt 00:00:17]} 7. b3 {[%clk 01:25:23]}
{[%emt 00:00:56]} O-O {[%clk 01:31:44]} {[%emt 00:00:46]} 8. Be2 {[%clk
01:25:22]} {[%emt 00:00:30]} b6 {[%clk 01:30:39]} {[%emt 00:01:35]} 9. Bb2
{[%clk 01:25:19]} {[%emt 00:00:33]} Bb7 {[%clk 01:30:52]} {[%emt 00:00:18]} 10.
O-O {[%clk 01:24:31]} {[%emt 00:01:18]} Qe7 {[%clk 01:31:12]} {[%emt 00:00:09]}
11. Rfe1 {[%clk 01:23:07]} {[%emt 00:01:55]} Rfe8 {[%clk 01:31:18]} {[%emt
00:00:24]} 12. Rad1 {[%clk 01:21:03]} {[%emt 00:02:33]} Rad8 {[%clk 01:31:27]}
{[%emt 00:00:21]} 13. Bf1 {[%clk 01:20:09]} {[%emt 00:01:24]} c5 {[%clk
01:30:50]} {[%emt 00:01:07]} 14. cxd5 {[%clk 01:18:39]} {[%emt 00:02:00]} exd5
{[%clk 01:30:16]} {[%emt 00:01:04]} 15. Nb5 {[%clk 01:13:39]} {[%emt 00:05:30]}
Bb8 {[%clk 01:29:53]} {[%emt 00:00:53]} 16. dxc5 {[%clk 01:09:38]} {[%emt
00:04:32]} bxc5 {[%clk 01:29:06]} {[%emt 00:01:17]} 17. g3 {[%clk 01:08:49]}
{[%emt 00:01:19]} Ng4 {[%clk 01:07:05]} {[%emt 00:22:30]} 18. Bg2 {[%clk
01:02:40]} {[%emt 00:06:39]} Ndf6 {[%clk 01:04:01]} {[%emt 00:03:35]} 19. Nc3
{[%clk 00:54:56]} {[%emt 00:08:13]} h5 {[%clk 00:55:03]} {[%emt 00:09:28]} 20.
Ba3 {[%clk 00:41:49]} {[%emt 00:13:37]} Qc7 {[%clk 00:50:45]} {[%emt 00:04:48]}
21. h3 {[%clk 00:38:40]} {[%emt 00:03:39]} d4 {[%clk 00:38:54]} {[%emt
00:12:20]} 22. hxg4 {[%clk 00:29:31]} {[%emt 00:09:39]} hxg4 {[%clk 00:35:11]}
{[%emt 00:04:13]} 23. Nb5 {[%clk 00:24:25]} {[%emt 00:05:37]} Qa5 {[%clk
00:29:26]} {[%emt 00:06:15]} 24. Nfxd4 {[%clk 00:24:14]} {[%emt 00:00:41]} Bxg2
{[%clk 00:27:03]} {[%emt 00:02:52]} 25. Qxc5 {[%clk 00:23:06]} {[%emt
00:01:38]} Bb7 {[%clk 00:20:15]} {[%emt 00:07:18]} 26. Nf5 {[%clk 00:12:25]}
{[%emt 00:11:11]} Rd5 {[%clk 00:17:10]} {[%emt 00:03:35]} 27. Ne7+ {[%clk
00:12:31]} {[%emt 00:00:25]} Rxe7 {[%clk 00:17:33]} {[%emt 00:00:07]} 28. Qxe7
{[%clk 00:12:57]} {[%emt 00:00:04]} Qxb5 {[%clk 00:17:22]} {[%emt 00:00:42]} 29.
e4 {[%clk 00:09:40]} {[%emt 00:03:47]} Rxd1 {[%clk 00:15:38]} {[%emt 00:02:14]}
30. Rxd1 {[%clk 00:09:04]} {[%emt 00:01:06]} Bxe4 {[%clk 00:15:03]} {[%emt
00:01:05]} 31. Re1 {[%clk 00:04:42]} {[%emt 00:04:52]} Ba8 {[%clk 00:11:29]}
{[%emt 00:04:04]} 0-1